Cogmind - Beta 14 @@@ ROGUE MODE // 2025.01.19 @ 15:40:30 Player: Swagumen Result: Destroyed by P-60 Hacker with Shock Rifle Performance ------------- Evolutions (3) 1500 Regions Visited (6) 1200 Robots Destroyed (82) 410 Value Destroyed (1914) 1914 Prototype IDs (28) 560 Alien Tech Used (0) 0 Bonus (419) 419 TOTAL SCORE: 6003 Bonus ------- High Alert Combat Kills 119 Aligned with FarCom 300 Cogmind --------- Core Integrity 0/700 Matter 73/300 Energy 57/100 System Corruption 0% Temperature Cool (0) Movement Core (50) Location -7/Factory Parts ------- > --- POWER (1) -------- (None) > --- PROPULSION (4) --- (None) > --- UTILITY (6) ------ Machine Analyzer Improved Signal Interpreter Corruption Screen > --- WEAPON (2) ------- (None) > --- INVENTORY (5) ---- ECM Suite Cloak of Protection Improved Shield Generator Katana Peak State ------------ > --- POWER ------------ Deuterium Engine > --- PROPULSION ------- Cesium-ion Thruster Cesium-ion Thruster Xenon Bombardment Thruster Xenon Bombardment Thruster > --- UTILITY ---------- Small Storage Unit Trap Scanner Machine Analyzer Improved Power Shielding Improved Medium Armor Plating Corruption Screen > --- WEAPON ----------- Pulse Rifle Katana > --- INVENTORY -------- Cloak of Protection Improved Shield Generator Improved EM Shotgun High-powered Shotgun Assault Cannon Rocket Launcher [Rating: 43] Favorites ----------- Power Ion Engine Engine Ion Engine Propulsion Light Treads Treads Light Treads Flight Unit Xenon Bombardment Thruster Utility Medium Storage Unit Device Improved Heat Sink Storage Medium Storage Unit Processor Machine Analyzer Protection Improved Power Shielding Weapon Particle Gun Energy Gun Particle Gun Ballistic Gun Minigun Ballistic Cannon Assault Cannon Launcher Mini Grenade Launcher Impact Weapon Heavy Flail Slashing Weapon Katana Build | -11 -10 -10 -10 -9 -8 -7 ------- Run | Yrd Mat Min Exi Min Mat Fac Slots Evolved 6 | . . . . . 4 2 Power . | . . . . . . . Propulsion 2 | . . . . . 1 1 Utility 4 | . . . . . 3 1 Weapon . | . . . . . . . Parts Attached 96 | 7 19 3 . 2 49 16 Power 9 | 1 1 . . . 6 1 Engine 9 | 1 1 . . . 6 1 Core . | . . . . . . . Reactor . | . . . . . . . Propulsion 15 | 2 . . . . 8 5 Treads 10 | 2 . . . . 8 . Leg . | . . . . . . . Wheel . | . . . . . . . Hover . | . . . . . . . Flight 5 | . . . . . . 5 Utility 24 | 2 3 1 . . 13 5 Device 12 | 1 2 1 . . 8 . Storage 3 | 1 1 . . . . 1 Processor 4 | . . . . . 1 3 Hackware . | . . . . . . . Protection 5 | . . . . . 4 1 Artifact . | . . . . . . . Weapon 48 | 2 15 2 . 2 22 5 Energy Gun 23 | 2 8 1 . 1 9 2 Energy Cannon . | . . . . . . . Ballistic Gun 3 | . . . . . 2 1 Ballistic Cannon 3 | . . . . . 2 1 Launcher 14 | . 7 1 . 1 4 1 Special Weapon . | . . . . . . . Impact Weapon 1 | . . . . . 1 . Slashing Weapon 4 | . . . . . 4 . Piercing Weapon . | . . . . . . . Special Melee Weapon . | . . . . . . . Unidentified Prototypes 2 | . . . . . 1 1 Parts Lost 27 | . 1 . . . 16 10 Power 6 | . 1 . . . 3 2 Propulsion 11 | . . . . . 7 4 Utility 6 | . . . . . 5 1 Weapon 4 | . . . . . 1 3 Highest Loss Streak 7 | . 1 . . . 6 7 To Critical Strikes 2 | . . . . . 2 . Average Slot Usage (%) 91 | . 100 100 100 100 80 88 Engine 11 | . 14 14 14 14 8 6 Treads 21 | . 28 28 28 28 20 3 Flight 3 | . . . . . . 19 Device 13 | . 14 14 14 14 13 8 Storage 11 | . 14 14 14 14 9 6 Processor 3 | . . . . . 1 16 Protection 4 | . . . . . 8 10 Energy Gun 17 | . 24 27 28 26 11 4 Launcher 1 | . 3 . . 1 1 . Slashing Weapon 1 | . . . . . 1 6 Peak Build Rating 43 | 7 12 12 11 11 26 43 Average Rating 17 | 4 11 10 10 11 19 36 On Entrance 10 | . 7 12 10 11 11 24 Naked Turns . | . . . . . . . Heaviest Build 33 | 13 22 22 22 22 33 32 Greatest Support 62 | 40 40 40 40 40 62 40 Greatest Overweight (x) 5 | . . . . . 1 5 Average Overweight (x) . | . . . . . . . Largest Inventory Capacity 10 | 8 10 10 10 10 10 10 Average Capacity 9 | 7 9 10 10 10 10 8 Most Carried 10 | 3 9 10 10 10 10 10 Average Carried 8 | . 7 9 10 10 9 7 Final Capacity 10 | 8 10 10 10 10 10 5 Final Carried 10 | 1 9 10 10 10 9 4 Class Distribution -------------------- 86% | Mutant 13% | Assassin Dominant Class ---------------- Mutant | -10/Materials Mutant | -10/Mines Mutant | -10/Exiles Mutant | -9/Mines Mutant | -8/Materials Assassin | -7/Factory Resources | -11 -10 -10 -10 -9 -8 -7 ----------- Run | Yrd Mat Min Exi Min Mat Fac Matter Collected 1648 | 165 505 20 . 5 908 45 Remotely . | . . . . . . . Salvage Created 2028 | 23 756 10 . 77 1043 119 Parts 118 | 3 43 5 . 3 60 4 Haulers Intercepted 6 | . 2 . . . 3 1 Recyclers Shooed 4 | . 3 . . . 1 . Parts Field Recycled . | . . . . . . . Retrieved Matter . | . . . . . . . Parts Self-Destructed . | . . . . . . . Prevented . | . . . . . . . Kills | -11 -10 -10 -10 -9 -8 -7 ------- Run | Yrd Mat Min Exi Min Mat Fac Combat Hostiles Destroyed 58 | . 16 3 . 2 32 5 Melee 1 | . . . . . 1 . Guns 13 | . 5 . . . 8 . Cannons 5 | . . . . . 4 1 AOE 37 | . 11 3 . 2 17 4 Classes Destroyed 12 | 1 8 . . . 2 1 Worker 5 | . 4 . . . 1 . Builder 1 | . . . . . . 1 Tunneler 1 | 1 . . . . . . Hauler 6 | . 2 . . . 3 1 Recycler 4 | . 3 . . . 1 . Operator 3 | . 2 . . . 1 . Watcher 4 | . 3 . . . 1 . Swarmer 27 | . 6 3 . . 14 4 Grunt 19 | . 7 . . 2 10 . Sentry 8 | . . . . . 7 1 Hunter 1 | . . . . . 1 . Subdweller 3 | . 3 . . . . . Best Kill Streak 12 | 1 5 3 . 2 12 5 Combat Bots Only 12 | . 3 3 . 2 12 4 Max Kills in Single Turn 4 | 1 4 2 . 1 3 2 Gunslinging . | . . . . . . . Exploded 3 | . 3 2 . 1 3 2 Melee 1 | . . . . . 1 . Uniques/NPCs Destroyed . | . . . . . . . Combat | -11 -10 -10 -10 -9 -8 -7 -------- Run | Yrd Mat Min Exi Min Mat Fac Hostile Shots Fired 495 | . 39 3 . 1 217 235 Missed 148 | . 10 . . . 56 82 Damage Taken 4739 | . 440 95 . 15 2291 1898 Core 1071 | . 53 15 . . 302 701 Absorbed by Shields . | . . . . . . . Redirected to Shielding 40 | . . . . . 40 . Core Remaining (%) 72 | 100 . . . 72 45 . Volleys Fired 158 | 2 53 2 . 2 78 21 Largest 2 | 2 2 1 . 1 2 2 Hottest 130 | 100 130 30 . 30 130 72 Shots Fired 252 | 4 86 2 . 2 130 28 Gun 165 | 4 64 . . . 83 14 Cannon 28 | . . . . . 21 7 Launcher 59 | . 22 2 . 2 26 7 Special . | . . . . . . . Kinetic 59 | . . . . . 42 17 Thermal 130 | 4 64 . . . 62 . Explosive 59 | . 22 2 . 2 26 7 Electromagnetic 4 | . . . . . . 4 Robot Hit Streak 11 | 3 8 . . . 11 10 Robot Miss Streak 4 | . 4 2 . . 4 3 Penetration Max . | . . . . . . . Secondary Targets 1 | . 1 . . . . . Max Gunslinging Chain 1 | . 1 . . . . . Shots Hit Robots 149 | 3 40 . . . 92 14 Core Hits 123 | 1 43 3 . 3 55 18 Critical Kills . | . . . . . . . Critical Parts Destroyed 3 | . . . . . 3 . Critical Strikes 8 | . 3 . . . 4 1 Burn 3 | . 3 . . . . . Blast 1 | . . . . . . 1 Smash 3 | . . . . . 3 . Sever 1 | . . . . . 1 . Melee Attacks 58 | . . . . . 30 28 Impact 10 | . . . . . 10 . Slashing 48 | . . . . . 20 28 Piercing . | . . . . . . . Sneak Attacks 2 | . . . . . 1 1 Combat Hostiles . | . . . . . . . Follow-up Attacks 3 | . . . . . 3 . Damage Inflicted 5762 | 38 1620 172 . 122 3129 681 Guns 1790 | 38 567 . . . 1033 152 Cannons 389 | . . . . . 340 49 Explosions 2937 | . 1051 172 . 121 1173 420 Melee 643 | . . . . . 583 60 Ramming 3 | . 2 . . 1 . . Kinetic 751 | . . . . . 605 146 Thermal 1373 | 38 567 . . . 768 . Explosive 2937 | . 1051 172 . 121 1173 420 Electromagnetic 55 | . . . . . . 55 Impact 330 | . . . . . 330 . Slashing 313 | . . . . . 253 60 Piercing . | . . . . . . . Highest Corruption . | . . . . . . . Average Corruption . | . . . . . . . Corruption Purged . | . . . . . . . Corruption Blocked 2 | . . . . . . 2 Overload Shots . | . . . . . . . Overflow Damage 217 | . 37 . . . 173 7 Projectiles 16 | . . . . . 16 . Explosions 100 | . 37 . . . 56 7 Melee 101 | . . . . . 101 . Knockbacks 9 | . . . . . 8 1 Impact 2 | . . . . . 2 . Kinetic 7 | . . . . . 6 1 Secondary . | . . . . . . . Self-Inflicted Damage 219 | . 46 74 . . 64 35 Shots 8 | . 3 2 . . 2 1 Rammed 3 | . 1 . . 2 . . Targets Rammed 3 | . 1 . . 2 . . Kicked . | . . . . . . . Crushed . | . . . . . . . Highest Temperature 273 | 78 243 . . 4 273 71 Average Temperature 53 | 39 65 . . 4 50 30 Received Heat Transfer 1557 | . 102 . . 9 792 654 Effects 1 | . . . . . 1 . Energy Bleed 1 | . . . . . 1 . Siege Activations . | . . . . . . . Robots Corrupted 1 | . . . . . 1 . Combat Hostiles 1 | . . . . . 1 . Parts Fried 1 | . . . . . 1 . Impact Corruptions 3 | . . . . . 3 . Robots Melted 1 | . . . . . 1 . Combat Hostiles 1 | . . . . . 1 . Parts Melted 9 | . 5 . . . 4 . Heat Transferred 3478 | 111 1628 . . . 1739 . Parts Sabotaged . | . . . . . . . Parts Stolen . | . . . . . . . Parts Stripped . | . . . . . . . Power Chain Reactions . | . . . . . . . Alert | -11 -10 -10 -10 -9 -8 -7 ------- Run | Yrd Mat Min Exi Min Mat Fac Peak Influence 569 | 5 356 121 . 55 569 143 Initial 121 | . 3 34 . . 21 121 Average 158 | . 165 54 . 6 281 68 Maximum Alert Level 2 | . 1 . . . 2 . Low Security (%) 72 | 100 78 100 . 100 35 100 Level 1 15 | . 21 . . . 28 . Level 2 11 | . . . . . 35 . Level 3 . | . . . . . . . Level 4 . | . . . . . . . Level 5 . | . . . . . . . High Security . | . . . . . . . Max Security . | . . . . . . . Squads Dispatched 13 | . 1 . . . 7 5 Investigation 4 | . . . . . 1 3 Extermination 1 | . . . . . . 1 Reinforcement 4 | . 1 . . . 2 1 Assault . | . . . . . . . Garrison 4 | . . . . . 4 . Intercept . | . . . . . . . Searches Triggered . | . . . . . . . Construction Impeded 2 | . . . . . 1 1 Haulers Reinforced . | . . . . . . . Active Scanning Responses . | . . . . . . . Cargo Convoy Interrupts . | . . . . . . . Stealth | -11 -10 -10 -10 -9 -8 -7 --------- Run | Yrd Mat Min Exi Min Mat Fac Distress Signals 5 | . . . . . 5 . Communications Jammed . | . . . . . . . Distress Signals . | . . . . . . . Times Spotted 85 | . 26 3 . 1 41 14 Peak Tracking Total 7 | . 4 3 . 1 7 6 Tactical Retreats 5 | . 1 . . . 4 . Traps | -11 -10 -10 -10 -9 -8 -7 ------- Run | Yrd Mat Min Exi Min Mat Fac Traps Triggered 4 | . 2 . . . 1 1 Indirectly . | . . . . . . . Trap Hack Attempts . | . . . . . . . Triggered . | . . . . . . . Disarmed . | . . . . . . . Reprogrammed . | . . . . . . . Reused . | . . . . . . . Traps Extracted . | . . . . . . . Installed . | . . . . . . . Triggered . | . . . . . . . Machines | -11 -10 -10 -10 -9 -8 -7 ---------- Run | Yrd Mat Min Exi Min Mat Fac Machines Disabled 7 | . 6 . . . 1 . Max in Single Turn 3 | . 3 . . . 1 . Machines Repaired . | . . . . . . . Machines Dismantled . | . . . . . . . Machines Sabotaged . | . . . . . . . Overloaded Fab Kills . | . . . . . . . Hacking | -11 -10 -10 -10 -9 -8 -7 --------- Run | Yrd Mat Min Exi Min Mat Fac Machines Accessed 23 | . 6 . 1 1 8 7 Terminals 13 | . 5 . . 1 3 4 Fabricators 1 | . . . . . . 1 Repair Stations . | . . . . . . . Recycling Units 4 | . 1 . . . 2 1 Scanalyzers 3 | . . . . . 2 1 Garrison Access 1 | . . . . . 1 . Total Hacks 63 | . 18 . 1 2 24 18 Successful 35 | . 7 . 1 1 15 11 Failed 28 | . 11 . . 1 9 7 Catastrophic 5 | . 3 . . . 2 . Database Lockouts . | . . . . . . . Manual 18 | . 13 . 1 2 . 2 Terminals 36 | . 15 . . 2 9 10 Fabricators 3 | . . . . . . 3 Repair Stations . | . . . . . . . Recycling Units 10 | . 3 . . . 5 2 Scanalyzers 11 | . . . . . 8 3 Garrison Access 2 | . . . . . 2 . Terminal Hacks 18 | . 6 . 1 1 4 6 Record 4 | . . . . . 1 3 Part Schematic 1 | . . . . . . 1 Robot Analysis 1 | . 1 . . . . . Prototype ID Bank 2 | . 2 . . . . . Branch Access Points 2 | . 1 . . 1 . . Unreport Threat 2 | . . . . . 2 . Locate Traps 2 | . 1 . . . 1 . Hauler Manifests 2 | . 1 . . . . 1 Zone Layout 1 | . . . . . . 1 Derelict Proto ID Bank 1 | . . . 1 . . . Fabricator Hacks 2 | . . . . . . 2 Load Schematic 1 | . . . . . . 1 Build 1 | . . . . . . 1 Repair Station Hacks . | . . . . . . . Recycling Unit Hacks 6 | . 1 . . . 4 1 Report Inventory 4 | . 1 . . . 2 1 Retrieve Components 2 | . . . . . 2 . Scanalyzer 9 | . . . . . 7 2 Insert Component 5 | . . . . . 4 1 Analyze 4 | . . . . . 3 1 Garrison Access Hacks . | . . . . . . . Unauthorized Hacks . | . . . . . . . Terminals . | . . . . . . . Fabricators . | . . . . . . . Repair Stations . | . . . . . . . Recycling Units . | . . . . . . . Scanalyzers . | . . . . . . . Garrison Access . | . . . . . . . Data Cores Recovered 1 | . 1 . . . . . Used . | . . . . . . . Hacking Detections 21 | . 6 . . 1 8 6 Full Trace Events 4 | . . . . . 1 3 Feedback Events . | . . . . . . . Feedback Blocked . | . . . . . . . Robot Schematics Acquired . | . . . . . . . Robots Built . | . . . . . . . Authchips . | . . . . . . . Time . | . . . . . . . Total Robot Build Rating . | . . . . . . . Part Schematics Acquired 5 | . . . . . 3 2 Parts Built 2 | . . . . . . 2 Authchips . | . . . . . . . Time 42 | . . . . . . 42 Total Part Build Rating 8 | . . . . . . 8 Parts Repaired . | . . . . . . . Time . | . . . . . . . Parts Recycled . | . . . . . . . Recycled Matter . | . . . . . . . Retrieved Matter . | . . . . . . . Retrieved Components 19 | . . . . . 19 . Parts Scanalyzed 4 | . . . . . 3 1 Part Schematics Acquired 4 | . . . . . 3 1 Parts Damaged . | . . . . . . . Bothacking | -11 -10 -10 -10 -9 -8 -7 ------------ Run | Yrd Mat Min Exi Min Mat Fac Used RIF Installer . | . . . . . . . Robots Hacked . | . . . . . . . Non-combat . | . . . . . . . Combat . | . . . . . . . Robot Hacks Applied . | . . . . . . . Relay Couplers Released . | . . . . . . . Fabnet Peak Effective % . | . . . . . . . Robots Rewired . | . . . . . . . Allies Hacked . | . . . . . . . Hacks Repelled . | . . . . . . . Allies | -11 -10 -10 -10 -9 -8 -7 -------- Run | Yrd Mat Min Exi Min Mat Fac Total Allies . | . . . . . . . Largest Group . | . . . . . . . Highest-Rated Group . | . . . . . . . Highest-Rated Ally . | . . . . . . . Total Orders . | . . . . . . . Ally Attacks . | . . . . . . . Total Damage . | . . . . . . . Kills . | . . . . . . . Allies Corrupted . | . . . . . . . Allies Melted . | . . . . . . . Intel | -11 -10 -10 -10 -9 -8 -7 ------- Run | Yrd Mat Min Exi Min Mat Fac Robot Analysis Total 1 | . 1 . . . . . Derelict Logs Recovered 3 | . . 1 . 2 . . Drone Launches . | . . . . . . . Drone Recoveries . | . . . . . . . Exploration | -11 -10 -10 -10 -9 -8 -7 ------------- Run | Yrd Mat Min Exi Min Mat Fac Turns Passed 6237 | 68 1727 359 349 764 1958 1012 Spaces Moved 3361 | 34 945 203 218 433 870 658 Core 13 | 6 . . . . . 7 Treads 2839 | 28 945 203 218 433 870 142 Legs . | . . . . . . . Wheels . | . . . . . . . Hover . | . . . . . . . Flight 509 | . . . . . . 509 Fastest Speed 50 | 50 160 160 160 160 152 50 Average Speed 153 | 140 160 160 160 160 160 124 Slowest Speed 355 | 160 160 160 160 160 240 355 Overloaded Moves . | . . . . . . . Propulsion Burnouts . | . . . . . . . Robots Hopped . | . . . . . . . Cave-ins Triggered . | . . . . . . . Exploration Rate (%) 50 | 3 99 44 61 79 45 23 Regions Visited 6 Branch Regions 3 Pre-discovered Areas 2 | . . 1 . 1 . . Known Exits Taken 1 | . 1 . . . . . Unknown Exits Taken 5 | 1 . 1 1 1 1 . Scrap Searched 1 | . . 1 . . . . Spaces Dug 69 | . 10 . . . 26 33 Terrain Destroyed 366 | . 129 23 . 8 159 47 Melee 34 | . . . . . 9 25 Projectile 4 | . . . . . 4 . AOE 328 | . 129 23 . 8 146 22 Terrain Rammed . | . . . . . . . Walls Destroyed . | . . . . . . . Machines Disabled . | . . . . . . . Actions | -11 -10 -10 -10 -9 -8 -7 --------- Run | Yrd Mat Min Exi Min Mat Fac Total 4109 | 50 1068 234 219 500 1254 784 Wait 351 | . 31 26 . 62 197 35 Move 3355 | 33 944 202 217 432 869 658 Hop . | . . . . . . . Pick Up 52 | 8 14 1 1 . 18 10 Fast Attach 14 | . . . . . 11 3 Attach 31 | 7 1 . . . 12 11 Detach 2 | . . . . . 1 1 Swap 51 | . 18 3 . 2 26 2 Drop 37 | . 6 . 1 . 15 15 Fire 158 | 2 53 2 . 2 78 21 Melee 55 | . . . . . 27 28 Ram . | . . . . . . . Kick . | . . . . . . . Crush 3 | . 1 . . 2 . . Escape Stasis . | . . . . . . . Rewire . | . . . . . . . Trap . | . . . . . . . Miscellaneous . | . . . . . . . Route ------- -11/Scrapyard -10/Materials (discovered 6 exits: [*Mat x3] / *Min x2 / [*Sub]) -10/Mines (discovered 2 exits: [*Mat] / *Exi) -10/Exiles -9/Mines -8/Materials -7/Factory (discovered 2 exits: [*Low x2]) History --------- Turn | Location | Event 6 | -11/Scrapyard | Discovered new exit (range 15) 69 | -11/Scrapyard | Entered Materials 266 | -10/Materials | Discovered new exit (range 7) 302 | -10/Materials | Build established: Mutant 502 | -10/Materials | Discovered new exit (range 10) 517 | -10/Materials | Identified exit to Mines 614 | -10/Materials | Discovered new exit (range 14) 921 | -10/Materials | Discovered new exit (range 15) 1269 | -10/Materials | Derelicts attacked the area 1614 | -10/Materials | Discovered new exit (range 10) 1796 | -10/Materials | Entered Mines 1806 | -10/Mines | Learned location of Storage (-7) 1997 | -10/Mines | Deemed a non-threat by the Exiles lab entrance 1997 | -10/Mines | Discovered new exit (range 5) 2042 | -10/Mines | Discovered new exit (range 9) 2061 | -10/Mines | Received a Rocket Launcher from a helpful Derelict 2155 | -10/Mines | Entered Exiles 2194 | -10/Exiles | Met 8R-AWN 2221 | -10/Exiles | Met EX-HEX 2266 | -10/Exiles | Met EX-BIN 2285 | -10/Exiles | Aligned with FarCom system 2287 | -10/Exiles | Given EX-Vault access code 2327 | -10/Exiles | Opened EX-Vault 2338 | -10/Exiles | Found Cloak of Protection 2375 | -10/Exiles | Warned to stay clear of 0b10 Research branches 2419 | -10/Exiles | Met EX-DEC 2485 | -10/Exiles | Discovered new exit (range 14) 2504 | -10/Exiles | Left Exiles lab with Cloak of Protection 2504 | -10/Exiles | Entered Mines 2722 | -9/Mines | Learned Materials machine intel 3254 | -9/Mines | Discovered new exit (range 9) 3268 | -9/Mines | Entered Materials 3268 | -8/Materials | Evolved 4 slots: Propulsion x1, Utility x3 3269 | -8/Materials | Loaded intel: 56 machine locations 3675 | -8/Materials | Garrison activated, responded to threat 3986 | -8/Materials | Garrison activated, responded to threat 4018 | -8/Materials | Destroyed 12 combat bots 4104 | -8/Materials | Lost 4 parts (1p1n2u) 4470 | -8/Materials | Discovered new exit (range 9) 4622 | -8/Materials | Lost 6 parts (2p2n1u1w) 4771 | -8/Materials | Core integrity fell below 50% 5226 | -8/Materials | Entered Factory 5226 | -7/Factory | Evolved 2 slots: Propulsion x1, Utility x1 5580 | -7/Factory | Build established: Assassin 5729 | -7/Factory | Discovered new exit (range 10) 6125 | -7/Factory | Discovered new exit (range 16) 6173 | -7/Factory | Lost 3 parts (3n) 6208 | -7/Factory | Core integrity fell below 50% 6233 | -7/Factory | Core integrity fell below 20% 6238 | -7/Factory | Fabricated Xenon Bombardment Thruster (x2) 6238 | -7/Factory | Destroyed by P-60 Hacker with Shock Rifle Last Messages --------------- 06207_ Critical hit (Burn: +37). 06208_ Slug penetrates Fusion Modulator. 06209_ Deuterium Engine destroyed. 06214_ Slug penetrates Fabricator. 06219_ Assault Cannon destroyed. 06219_ Corruption Screen intercepted 1% system corruption. 06220_ Slug penetrates Fabricator. 06222_ Slug penetrates Wall. 06222_ Corruption Screen intercepted 1% system corruption. 06224_ Slug penetrates Fabricator. 06225_ Gauss Rifle destroyed. 06226_ Identified Imp. EM Shotgun. 06227_ Sml. Storage Unit destroyed. 06228_ Critical hit (Burn: +37). 06228_ M-13 Machinist repairs G-47 Trooper. 06235_ Imp. EM Shotgun destroyed. 06238_ Fabricator completes Xenon Bombardment Thruster. Map ----- +----------------------------------------------------+ | ???????????????????R"???????????????????????????? | | ??????????????????"""???????????????????????????? | | ????????????????????????????????????????????????? | | """""""???????"""???????????????????????????????? | | ??????????????"""???????????????????????????????? | | ????"T"???????"""???????????????????????????????? | | ????"""?????????????????????????????????????????? | | ????????????????????????????????????????????????? | | ?????????????????????"""????????????????????????? | | ????????????????""???"""????????????????????????? | | ????????????????""???"""????????????????????????? | | ????????????????"""o??F"????????????????????????? | | ????????????????"""??"""????????????????????????? | | ????????????????"""??""?????????????????????????? | | ????????????????????????????????????????????????? | | ????????????????????????????????????????????????? | | ????????????????????????????????????????????????? | | ????????????????????????????????????????????????? | | ????????????????????????????????????????????????? | | ????????????????????????????????????????????????? | | ????????????????????????????????????????????????? | | ????????????????????????????????????????????????? | | ????????????????????##########??????????????????? | | ????????????????????# """ #??????????????????? | | ????????????????????# ""F"" #??????????????????? | | ????????????????????# ""@"" #??????????????????? | | ????????????????????# = #??????????????????? | | ????????????????????#gp #??????????????????? | | ????????????????????# ggg""" #??????????????????? | | ????????????????? + g%""" #??????????????????? | | ????????#????? ! # %=""" #??????????????????? | | ????????? ? ##?#=% #??????????????????? | | ?????????# ? ##########;+####??????????????????? | | ????????## ????# #??????????????????? | | ????????# ???# """"" #??????????????????? | | ????????# #??# """"" #??????????????????? | | ???????## = ?#] """ #??????????????????? | | ??##+### # ! #??????????????????? | | ??? # ####+###### #??????????? | | ??? * ! #??????????? | | ??? % ] < +??????????? | | ? % #??????????? | | ? # ########## ???????????? | | # ## / ! #??????= ???????????? | | # #### # " #????????+#?????????????? | | # # ! # ]] #???????????????????????? | | + + # ]! #???????????????????????? | | # # # "" #???????????????????????? | | # # [ """# "T """ #???????????????????????? | | # # """# "" """ #???????????????????????? | +----------------------------------------------------+ Best States ------------- Heat Dissipation 48 Energy Generation 14 Energy Capacity 275 Matter Stores 300 Matter Capacity 300 Sight Range 16 Terrain Scan Density 110 Cloak Strength 5 Corruption Block 8 Armor Coverage 225 Power Shielding 66 Weapon Shielding 66 Evasion (%) 40 Recoil Reduction 3 Particle Charging 15 Item Schematics ----------------- Sml. Storage Unit | -8/Materials | Scanalyzed Katana | -8/Materials | Scanalyzed Rocket Launcher | -8/Materials | Scanalyzed Xenon Bombardment Thruster | -7/Factory | Scanalyzed Hacking Suite | -7/Factory | Hacked Robot Schematics ------------------ None Fabricated ------------ Xenon Bombardment Thruster | x2 | -7/Factory Alien Tech Used ----------------- None Achievements -------------- None Challenges ------------ None Game ------ Seed CloakingAuthchipVibroblade Manual? 0 Play Time 01:01:38 Cumulative 12.0 hours Start 2025.01.19 @ 14:39:52 End 2025.01.19 @ 15:40:30 Sessions 1 Manual Loads 0 Difficulty Rogue Special Mode None Game No. 19 Rogue 19 Adventurer 0 Explorer 0 Win Type - Total 0 Types 0/0/0/0/0/0/0/0/0 Lore% 8 Gallery% 17 Achievement% 18 Wizard Run 0 Options --------- Layout 1 ASCII 0 Keyboard 0 Movement Mouse Keybinds 0 Fullscreen 0 Font 24/Smallcaps Map View 50x35 Zoom Use 0% Tactical HUD 1 Map Filters NONE Filters NONE Steam 1 RUN: e2cec4ce-6f05-4e56-b524-5b2c0fe79d6b